bitfinex-derivatives/quotes_SOLF0:USTF0_20220108
["timestamp","ask_amount","ask_price","bid_price","bid_amount"]
[1641622722101,27.66479,141.31,141.22,55.32958]
[1641622722306,31.60772758,141.31,141.22,55.32958]
[1641622722906,3.94293758,141.3,141.22,55.32958]
[1641622723106,3.94293758,141.28,141.22,55.32958]
[1641622723304,12.23193758,141.28,141.2,14.8977619]
[1641622723906,27.66479,141.26,141.2,14.8977619]
[1641622724107,27.66479,141.26,141.19,64.6865]
[1641622725509,31.60772758,141.26,141.19,64.6865]
[1641622725908,27.66479,141.26,141.19,64.6865]
[1641622727307,19.62532984,141.26,141.19,64.6865]
[1641622727509,23.56826742,141.26,141.19,64.6865]
[1641622727710,3.94293758,141.25,141.19,64.6865]
[1641622727909,23.56826742,141.26,141.19,64.6865]
[1641622728108,19.62532984,141.26,141.19,64.6865]
[1641622728309,66.921,141.3,141.19,73.2695]
[1641622728510,66.921,141.3,141.19,80.34088564]
[1641622728811,70.86393758,141.3,141.19,80.34088564]
[1641622729008,3.94293758,141.29,141.19,73.2695]
[1641622729211,3.94293758,141.27,141.19,73.2695]
[1641622729410,3.94293758,141.26,141.19,64.6865]
[1641622729812,3.94293758,141.26,141.21,14.8977619]
[1641622731013,6.069,141.27,141.19,79.5842619]
[1641622731211,3.94293758,141.23,141.19,79.5842619]
[1641622731413,3.94293758,141.22,141.19,14.8977619]
[1641622731614,11.65493758,141.23,141.19,14.8977619]
[1641622731813,11.65493758,141.23,141.17,14.8977619]
[1641622732014,35.37679,141.23,141.17,14.8977619]
[1641622732213,7.712,141.23,141.17,14.8977619]
[1641622733215,7.712,141.23,141.18,14.8977619]
[1641622735620,7.712,141.23,141.16,42.5625519]
[1641622736218,7.712,141.23,141.18,14.8977619]
[1641622736419,31.60772758,141.25,141.18,14.8977619]
[1641622737321,3.94293758,141.24,141.18,14.8977619]
[1641622737521,11.38493758,141.24,141.18,14.8977619]
[1641622737922,11.38493758,141.24,141.17,14.8977619]
[1641622738124,3.94293758,141.23,141.17,14.8977619]
[1641622738824,7.442,141.24,141.17,14.8977619]
[1641622739426,27.66479,141.25,141.16,14.8977619]
[1641622739625,67.6704,141.27,141.16,14.8977619]
[1641622740229,67.6704,141.27,141.18,27.66479]
[1641622740427,67.6704,141.27,141.2,14.8977619]
[1641622740629,31.60772758,141.28,141.2,14.8977619]
[1641622741228,31.60772758,141.28,141.21,14.8977619]
[1641622742231,27.66479,141.28,141.21,14.8977619]
[1641622742630,27.66479,141.28,141.21,22.7367619]
[1641622742830,66.921,141.3,141.21,22.7367619]
[1641622743031,14.8977619,141.33,141.21,22.7367619]
[1641622743233,21.96939757,141.34,141.22,16.61099209]
[1641622743430,25.91233515,141.34,141.22,16.61099209]
[1641622743632,3.94293758,141.31,141.22,16.61099209]
[1641622743832,3.94293758,141.31,141.24,14.8977619]
[1641622744533,31.60772758,141.33,141.24,14.8977619]
[1641622745533,27.66479,141.33,141.24,14.8977619]
[1641622746034,31.60772758,141.33,141.24,14.8977619]
[1641622746336,31.60772758,141.33,141.24,16.61099209]
[1641622746834,27.66479,141.33,141.24,16.61099209]
[1641622747840,27.66479,141.33,141.26,14.8977619]
[1641622748234,31.60772758,141.33,141.26,14.8977619]
[1641622748636,27.66479,141.33,141.26,14.8977619]
[1641622749137,31.60772758,141.33,141.26,14.8977619]
[1641622750438,31.60772758,141.33,141.25,14.8977619]
[1641622750637,38.94272758,141.33,141.25,14.8977619]
[1641622751338,38.94272758,141.33,141.24,24.50424093]
[1641622751639,34.99979,141.33,141.24,24.50424093]
[1641622752638,7.335,141.33,141.24,16.61099209]
[1641622752840,7.335,141.33,141.24,1.71323019]
[1641622753339,7.335,141.33,141.25,27.66479]
[1641622753541,7.335,141.33,141.26,7.06763729]
[1641622753740,14.8977619,141.37,141.29,7.06638872]
[1641622753939,14.8977619,141.37,141.3,4.0]
[1641622754341,14.8977619,141.37,141.31,4.0]
[1641622754541,3.94293758,141.41,141.29,15.83738872]
[1641622754941,3.94293758,141.4,141.29,15.83738872]
[1641622755241,31.60772758,141.4,141.3,27.66479]
[1641622755443,27.66479,141.4,141.3,27.66479]
[1641622755643,31.60772758,141.4,141.3,29.37802019]
[1641622756742,31.60772758,141.4,141.31,1.71323019]
[1641622756942,27.66479,141.4,141.31,1.71323019]
[1641622757547,27.66479,141.4,141.3,55.32958]
[1641622758545,27.66479,141.4,141.3,60.30717875]
[1641622760249,27.66479,141.4,141.31,6.68332142]
[1641622762751,27.66479,141.4,141.3,60.30717875]
[1641622762951,33.21479,141.4,141.3,60.30717875]
[1641622763153,5.55,141.4,141.3,60.30717875]
[1641622763554,5.55,141.4,141.31,6.68252058]
[1641622765958,9.49293758,141.4,141.31,6.68252058]
[1641622766157,3.94293758,141.38,141.31,6.68252058]
[1641622766358,3.94293758,141.38,141.31,4.97759875]
[1641622766558,3.94293758,141.38,141.3,32.64238875]
[1641622766961,3.94293758,141.37,141.3,32.64238875]
[1641622767158,10.62193758,141.37,141.3,32.64238875]
[1641622767458,10.62193758,141.37,141.3,27.66479]
[1641622767658,38.28672758,141.37,141.3,27.66479]
[1641622768860,34.34379,141.37,141.3,27.66479]
[1641622769060,39.32138875,141.37,141.3,32.64238875]
[1641622770061,43.26432633,141.37,141.3,32.64238875]
[1641622770261,39.32138875,141.37,141.3,32.64238875]
[1641622770860,11.65659875,141.37,141.3,32.64238875]
[1641622771460,11.65659875,141.37,141.31,7.06539019]
[1641622771661,6.679,141.37,141.33,4.97759875]
[1641622771961,10.52759875,141.4,141.33,4.97759875]
[1641622772563,5.55,141.4,141.33,4.97759875]
[1641622772761,4.97759875,141.41,141.33,4.97759875]
[1641622773160,4.97759875,141.4,141.34,4.97759875]
[1641622773860,12.39059875,141.4,141.34,4.97759875]
[1641622774061,12.39059875,141.4,141.33,27.66479]
[1641622774062,7.413,141.4,141.35,4.97759875]
[1641622774562,7.413,141.4,141.35,9.875e-05]
[1641622774862,3.94293758,141.36,141.32,16.60961903]
[1641622775063,5.563,141.36,141.29,39.80995145]
[1641622775264,12.63363565,141.36,141.3,14.99007736]
[1641622775462,5.563,141.36,141.3,14.99007736]
[1641622775666,27.66479,141.35,141.3,14.99007736]
[1641622776063,27.66479,141.35,141.27,39.80995145]
[1641622776263,27.66479,141.35,141.26,27.66479]
[1641622776463,5.563,141.36,141.26,27.66479]
[1641622776863,5.563,141.36,141.28,7.0668881]
[1641622777665,5.563,141.36,141.29,27.66479]
[1641622780064,3.94293758,141.38,141.29,27.66479]
[1641622780464,27.66479,141.39,141.29,27.66479]
[1641622785276,31.60772758,141.39,141.29,27.66479]
[1641622785476,3.94293758,141.38,141.29,27.66479]
[1641622785674,8.543,141.38,141.29,27.66479]
[1641622786174,76.6764,141.38,141.29,27.66479]
[1641622787476,68.6427062,141.38,141.29,27.66479]
[1641622789078,68.6427062,141.38,141.3,4.0]
[1641622789279,68.1334,141.38,141.3,12.095]
[1641622789478,68.1334,141.38,141.3,8.095]
[1641622790081,27.66479,141.42,141.32,27.66479]
[1641622790380,3.94293758,141.39,141.3,75.17213098]
[1641622790582,11.27893758,141.39,141.3,75.17213098]
[1641622791282,11.27893758,141.39,141.31,7.89563098]
[1641622791682,7.336,141.39,141.31,7.89563098]
[1641622791982,12.11743305,141.41,141.3,67.2765]
[1641622792181,12.11743305,141.41,141.32,27.66479]
[1641622792582,16.06037063,141.41,141.3,67.2765]
[1641622792782,23.12875727,141.41,141.29,27.66479]
[1641622792983,11.01132422,141.41,141.31,7.9099432]
[1641622793184,3.94293758,141.4,141.31,7.9099432]
[1641622793382,3.94293758,141.34,141.31,7.9099432]
[1641622793582,3.94293758,141.33,141.28,39.80995145]
[1641622793783,3.94293758,141.33,141.25,39.80995145]
[1641622793982,10.70593758,141.34,141.25,39.80995145]
[1641622794183,27.66479,141.32,141.25,39.80995145]
[1641622794784,6.763,141.34,141.25,39.80995145]
[1641622794984,6.763,141.34,141.27,7.06738754]
[1641622795184,39.80995145,141.39,141.27,7.06738754]
[1641622796184,71.41767903,141.39,141.29,27.66479]
[1641622796385,31.60772758,141.39,141.27,39.80995145]
[1641622796583,3.94293758,141.37,141.27,39.80995145]
[1641622796784,3.94293758,141.38,141.27,39.80995145]
[1641622796988,3.94293758,141.37,141.27,39.80995145]
[1641622797186,3.94293758,141.37,141.25,66.9539]
[1641622798085,3.94293758,141.37,141.24,46.87883775]
[1641622798287,27.66479,141.34,141.24,46.87883775]
[1641622798786,27.66479,141.34,141.24,7.0688863]
[1641622799487,27.66479,141.39,141.25,4.0]
[1641622799687,27.66479,141.39,141.25,8.04]
[1641622800287,55.32958,141.39,141.28,27.66479]
[1641622800488,59.27251758,141.39,141.28,27.66479]
[1641622800690,3.94293758,141.38,141.28,27.66479]
[1641622802391,3.94293758,141.37,141.28,27.66479]
[1641622802691,27.66479,141.35,141.28,27.66479]
[1641622803094,27.66479,141.35,141.24,59.52183394]
[1641622803293,68.9968,141.34,141.24,59.52183394]
[1641622803994,72.93973758,141.34,141.24,59.52183394]
[1641622804797,100.60452758,141.34,141.24,87.18662394]
[1641622805696,108.96652758,141.34,141.27,15.02035001]
[1641622807897,108.96652758,141.34,141.29,15.02035001]
[1641622808300,81.30173758,141.34,141.29,15.02035001]
[1641622808497,3.94293758,141.34,141.29,15.02035001]
[1641622809798,27.66479,141.36,141.29,15.02035001]
[1641622809999,3.94293758,141.32,141.29,15.02035001]
[1641622810197,12.70393758,141.32,141.29,15.02035001]
[1641622810904,36.42579,141.32,141.29,15.02035001]
[1641622811100,8.761,141.32,141.25,15.02035001]
[1641622811702,8.761,141.32,141.26,15.02035001]
[1641622813003,36.42579,141.32,141.26,15.02035001]
[1641622813200,3.94293758,141.27,141.26,15.02035001]
[1641622813402,9.81193758,141.27,141.26,15.02035001]
[1641622813802,9.81193758,141.27,141.26,5.001e-05]
[1641622814201,9.81193758,141.27,141.23,39.80995145]
[1641622814402,3.94293758,141.26,141.22,5.001e-05]
[1641622814601,3.94293758,141.24,141.22,5.001e-05]
[1641622814803,9.39393758,141.24,141.22,5.001e-05]
[1641622815001,27.66479,141.23,141.22,5.001e-05]
[1641622815403,27.66479,141.23,141.2,7.9031382]
[1641622815704,27.66479,141.23,141.16,39.80995145]
[1641622816903,27.66479,141.23,141.15,49.42303251]
[1641622817802,31.60772758,141.23,141.15,9.61308106]
[1641622818002,3.94293758,141.22,141.15,9.61308106]
[1641622818303,31.60772758,141.23,141.15,9.61308106]
[1641622818503,3.94293758,141.22,141.15,9.61308106]
[1641622818704,31.60772758,141.23,141.14,9.61308106]
[1641622819104,3.94293758,141.22,141.14,37.27787106]
[1641622819906,27.66479,141.23,141.14,37.27787106]
[1641622820106,31.60772758,141.23,141.14,37.27787106]
[1641622820508,3.94293758,141.22,141.14,37.27787106]
[1641622820811,3.94293758,141.22,141.15,1.70994286]
[1641622822307,3.94293758,141.21,141.15,1.70994286]
[1641622823408,3.94293758,141.21,141.14,9.61308106]
[1641622825112,27.66479,141.2,141.14,9.61308106]
[1641622825312,39.90172758,141.2,141.14,9.61308106]
[1641622825912,39.90172758,141.2,141.14,1.70994286]
[1641622826912,3.94293758,141.19,141.14,1.70994286]
[1641622827113,3.94293758,141.19,141.12,1.70994286]
[1641622827816,63.62358,141.2,141.12,1.70994286]
[1641622828017,3.94293758,141.18,141.09,1.70994286]
[1641622828816,3.94293758,141.18,141.08,1.70994286]
[1641622829018,3.94293758,141.15,141.08,1.70994286]
[1641622829220,11.99693758,141.15,141.08,29.37473286]
[1641622830518,11.99693758,141.15,141.09,1.70994286]
[1641622834925,8.054,141.15,141.09,1.70994286]
[1641622835125,3.94293758,141.24,141.13,4.97776183]
[1641622835324,27.66479,141.22,141.13,11.66576183]
[1641622835624,27.66479,141.24,141.13,11.66576183]
[1641622835825,27.66479,141.24,141.15,4.97776183]
[1641622837029,27.66479,141.24,141.18,4.97776183]
[1641622838827,27.66479,141.24,141.19,4.97776183]
[1641622840330,97.77799,141.25,141.19,13.16776183]
[1641622841035,27.66479,141.25,141.21,4.97776183]
[1641622841430,38.68186454,141.29,141.21,4.97776183]
[1641622841630,34.73892696,141.29,141.21,4.97776183]
[1641622842633,3.94293758,141.26,141.22,4.97776183]
[1641622843331,27.66479,141.24,141.22,4.97776183]
[1641622843533,33.36979,141.24,141.19,1.70994286]
[1641622843735,3.94293758,141.23,141.21,4.99765272]
[1641622844634,3.94293758,141.23,141.2,1.70994286]
[1641622844837,3.94293758,141.23,141.16,24.59009768]
[1641622845434,27.66479,141.2,141.16,24.59009768]
[1641622845638,36.17379,141.2,141.16,16.70461493]
[1641622845835,36.17379,141.2,141.16,1.70994286]
[1641622847339,36.17379,141.2,141.15,14.99467207]
[1641622848540,8.509,141.2,141.15,14.99467207]
[1641622848740,27.66479,141.22,141.15,14.99467207]
[1641622849541,27.66479,141.22,141.15,22.12967207]
[1641622850142,27.66479,141.22,141.17,14.99467207]
[1641622852044,3.94293758,141.24,141.17,14.99467207]
[1641622852645,31.60772758,141.24,141.17,14.99467207]
[1641622853849,27.66479,141.24,141.17,22.62167207]
[1641622854046,69.1252,141.31,141.18,7.07163567]
[1641622854245,134.6392,141.31,141.18,7.07163567]
[1641622854646,134.6392,141.31,141.21,27.66479]
[1641622854846,3.94293758,141.3,141.21,33.27279]
[1641622855048,18.93760965,141.29,141.21,33.27279]
[1641622855247,3.94293758,141.29,141.22,14.99467207]
[1641622856149,3.94293758,141.28,141.22,14.99467207]
[1641622856349,3.94293758,141.27,141.2,16.70461493]
[1641622856549,31.60772758,141.27,141.2,16.70461493]
[1641622856749,27.66479,141.27,141.2,16.70461493]
[1641622857250,27.66479,141.27,141.2,1.70994286]
[1641622858051,31.60772758,141.27,141.2,1.70994286]
[1641622860050,3.94293758,141.27,141.2,1.70994286]
[1641622860252,3.94293758,141.27,141.2,16.70461493]
[1641622860652,27.66479,141.26,141.2,16.70461493]
[1641622861051,27.66479,141.26,141.19,24.59793113]
[1641622862353,3.94293758,141.27,141.2,14.99467207]
[1641622862555,3.94293758,141.29,141.2,14.99467207]
[1641622862754,68.2788,141.3,141.2,14.99467207]
[1641622862956,27.66479,141.28,141.2,21.21067207]
[1641622863254,80.50867207,141.31,141.2,21.21067207]
[1641622863454,65.514,141.31,141.22,14.99467207]
[1641622864255,65.514,141.31,141.24,14.99467207]
[1641622864857,27.66479,141.3,141.24,14.99467207]
[1641622865457,27.66479,141.3,141.22,14.99467207]
[1641622865957,3.94293758,141.29,141.22,14.99467207]
[1641622866958,27.66479,141.3,141.22,14.99467207]
[1641622867357,65.514,141.31,141.22,14.99467207]
[1641622868157,65.514,141.31,141.23,14.99467207]
[1641622868758,64.3986,141.35,141.23,14.99467207]
[1641622868959,26.0082453,141.36,141.23,79.62777207]
[1641622869162,96.94979,141.35,141.24,27.66479]
[1641622869862,100.23817387,141.35,141.24,52.26272113]
[1641622870063,30.95317387,141.35,141.24,52.26272113]
[1641622870964,27.66479,141.35,141.24,52.26272113]
[1641622871164,27.66479,141.35,141.27,27.66479]
[1641622872066,27.66479,141.35,141.28,1.70994286]
[1641622872265,27.66479,141.35,141.28,8.11194286]
[1641622872466,70.561,141.36,141.28,8.11194286]
[1641622873069,70.561,141.36,141.28,6.402]
[1641622873669,70.561,141.36,141.27,27.66479]
[1641622873868,70.561,141.36,141.29,1.70479767]
[1641622874270,27.66479,141.37,141.29,1.70479767]
[1641622874871,27.66479,141.37,141.28,1.70479767]
[1641622880880,3.94293758,141.35,141.28,1.70479767]
[1641622881075,11.34593758,141.35,141.28,1.70479767]
[1641622881375,27.66479,141.34,141.28,1.70479767]
[1641622881575,27.66479,141.34,141.26,22.86564194]
[1641622881576,27.66479,141.34,141.25,16.69946974]
[1641622882576,27.66479,141.34,141.25,1.70479767]
[1641622885380,7.403,141.35,141.29,27.66479]
[1641622885581,42.65946207,141.37,141.29,27.66479]
[1641622885982,46.60239965,141.37,141.29,27.66479]
[1641622886182,31.60772758,141.37,141.3,1.70479767]
[1641622886483,27.66479,141.37,141.3,1.70479767]
[1641622889987,31.60772758,141.37,141.3,1.70479767]
[1641622890688,27.66479,141.37,141.3,1.70479767]
[1641622891292,3.290941,141.36,141.26,14.99467207]
[1641622891588,3.290941,141.36,141.27,27.66479]
[1641622891989,3.290941,141.36,141.27,42.65946207]
[1641622892591,3.290941,141.36,141.28,1.70479767]
[1641622893794,66.30051758,141.37,141.29,14.99467207]
[1641622894793,62.35758,141.37,141.29,14.99467207]
[1641622894993,55.32958,141.37,141.29,14.99467207]
[1641622895194,59.27251758,141.37,141.29,14.99467207]
[1641622895394,3.29630156,141.36,141.28,24.5855785]
[1641622895994,3.29630156,141.36,141.29,14.99467207]
[1641622899603,30.96109156,141.36,141.29,14.99467207]
[1641622900301,34.90402914,141.36,141.28,24.5855785]
[1641622900503,3.94293758,141.35,141.28,24.5855785]
[1641622901303,3.29630156,141.34,141.28,14.99467207]
[1641622902204,11.87230156,141.34,141.28,14.99467207]
[1641622902703,8.576,141.34,141.28,14.99467207]
[1641622904305,5.01410048,141.33,141.31,5.01410048]
[1641622905706,73.51970048,141.35,141.3,14.99467207]
[1641622906709,73.51970048,141.35,141.33,5.01334095]
[1641622906906,5.01410048,141.35,141.33,5.01334095]
[1641622907606,5.01410048,141.36,141.33,5.01334095]
[1641622909210,27.66479,141.38,141.3,14.99467207]
[1641622910109,27.66479,141.38,141.32,5.01055605]
[1641622910110,5.01055605,141.35,141.32,5.01055605]
[1641622910915,14.99467207,141.38,141.29,14.99467207]
[1641622911109,26.96560965,141.39,141.33,5.01077922]
[1641622911712,5.01071441,141.36,141.3,83.40837207]
[1641622911910,32.67550441,141.36,141.3,83.40837207]
[1641622912110,32.67550441,141.36,141.3,14.99467207]
[1641622912609,3.94293758,141.35,141.3,14.99467207]
[1641622912809,3.94293758,141.34,141.33,5.01286037]
[1641622913009,3.94293758,141.34,141.31,1.70479767]
[1641622913410,14.32479795,141.35,141.31,1.70479767]
[1641622913711,3.30043764,141.33,141.28,1.70479767]
[1641622914109,30.96522764,141.33,141.28,1.70479767]
[1641622914611,68.79,141.34,141.27,16.69946974]
[1641622914812,75.001,141.34,141.27,16.69946974]
[1641622915514,6.211,141.34,141.29,14.99467207]
[1641622915714,66.0625,141.37,141.29,14.99467207]
[1641622916016,93.72729,141.37,141.29,14.99467207]
[1641622917116,3.2986955,141.36,141.3,14.99467207]
[1641622918021,93.72729,141.37,141.3,14.99467207]
[1641622921027,14.99467207,141.39,141.3,14.99467207]
[1641622921230,14.99467207,141.39,141.3,18.99467207]
[1641622921729,14.99467207,141.39,141.3,14.99467207]
[1641622922131,15.03016261,141.42,141.38,4.0]
[1641622922329,15.03016261,141.42,141.41,27.66479]
[1641622922928,15.03016261,141.42,141.38,4.0]
[1641622923128,45.72895145,141.45,141.38,4.0]
[1641622923328,45.72895145,141.45,141.32,7.06464147]
[1641622923329,5.919,141.45,141.39,4.0]
[1641622923528,5.919,141.45,141.37,7.91298213]
[1641622923729,5.919,141.45,141.4,4.0]
[1641622923928,5.919,141.45,141.37,7.91298213]
[1641622924128,5.919,141.45,141.35,11.06339396]
[1641622924328,98.23939,141.48,141.38,27.66479]
[1641622924532,98.23939,141.48,141.39,4.0]
[1641622924730,98.23939,141.48,141.38,27.66479]
[1641622924929,98.23939,141.48,141.41,4.0]
[1641622925530,98.23939,141.48,141.4,7.591]
[1641622925729,98.23939,141.48,141.43,4.0]
[1641622925930,27.66479,141.5,141.44,4.0]
[1641622926131,27.66479,141.5,141.41,11.06040174]
[1641622926337,138.9476,141.53,141.44,27.66479]
[1641622926532,149.6876,141.53,141.44,33.67179]
[1641622926732,138.9476,141.53,141.47,4.0]
[1641622926934,70.8646,141.53,141.47,4.0]
[1641622927336,70.8646,141.53,141.48,4.0]
[1641622927536,27.66479,141.54,141.47,8.796]
[1641622927736,27.66479,141.54,141.48,4.0]
[1641622928138,27.66479,141.54,141.45,4.0]
[1641622928337,27.66479,141.54,141.44,4.0]
[1641622928538,35.68579,141.54,141.44,4.0]
[1641622929237,7.06214689,141.53,141.44,4.0]
[1641622929842,7.06214689,141.53,141.4,4.0]
[1641622930040,7.06214689,141.53,141.44,4.0]
[1641622930339,7.06214689,141.53,141.42,27.66479]
[1641622930642,7.06214689,141.53,141.44,4.0]
[1641622930840,7.06214689,141.53,141.42,27.66479]
[1641622931642,7.06214689,141.53,141.46,4.0]
[1641622932542,27.66479,141.51,141.46,4.0]
[1641622932941,27.66479,141.51,141.42,55.32958]
[1641622933546,27.66479,141.51,141.45,4.0]
[1641622933743,27.66479,141.51,141.44,4.0]
[1641622933942,27.66479,141.51,141.42,55.32958]
[1641622935344,27.66479,141.51,141.45,4.0]
[1641622938048,27.66479,141.51,141.42,59.32958]
[1641622938248,7.06439193,141.49,141.39,70.6695]
[1641622938555,27.66479,141.44,141.38,127.04737308]
[1641622938748,34.52079,141.44,141.39,4.0]
[1641622938949,34.52079,141.44,141.37,67.5608]
[1641622939150,34.52079,141.44,141.35,69.3242]
[1641622939449,41.5876781,141.44,141.35,69.3242]
[1641622940153,41.5876781,141.44,141.34,27.66479]
[1641622940351,41.5876781,141.44,141.35,4.0]
[1641622940750,27.66479,141.41,141.35,4.0]
[1641622940951,36.49679,141.41,141.35,4.0]
[1641622941450,36.49679,141.41,141.34,27.66479]
[1641622941651,36.49679,141.41,141.33,4.0]
[1641622942352,36.49679,141.41,141.32,67.4215]
[1641622942951,36.49679,141.41,141.34,4.0]
[1641622950362,27.66479,141.41,141.36,4.0]
[1641622950562,27.66479,141.44,141.37,4.0]
[1641622950863,27.66479,141.44,141.36,8.818]
[1641622951062,27.66479,141.44,141.38,4.0]
[1641622951662,27.66479,141.44,141.37,4.0]
[1641622951862,27.66479,141.44,141.38,4.0]
[1641622952562,27.66479,141.44,141.36,8.818]
[1641622952762,27.66479,141.44,141.37,4.0]
[1641622953762,27.66479,141.44,141.36,8.818]
[1641622953963,27.66479,141.44,141.34,22.82993113]
[1641622954563,27.66479,141.44,141.37,4.0]
[1641622954963,27.66479,141.44,141.36,34.19779]
[1641622956164,27.66479,141.44,141.37,4.0]
[1641622956366,27.66479,141.44,141.36,27.66479]
[1641622956566,27.66479,141.44,141.36,31.66479]
[1641622956765,27.66479,141.44,141.36,27.66479]
[1641622956967,27.66479,141.44,141.37,4.0]
[1641622957166,27.66479,141.44,141.36,27.66479]
[1641622957366,27.66479,141.44,141.36,4.0]
[1641622957568,27.66479,141.44,141.33,42.62245395]
[1641622957966,27.66479,141.44,141.38,4.0]
[1641622958472,27.66479,141.44,141.39,4.0]
[1641622959170,27.66479,141.44,141.37,27.66479]
[1641622959569,27.66479,141.44,141.38,4.0]
[1641622959770,27.66479,141.44,141.37,27.66479]
[1641622960171,27.66479,141.44,141.39,4.0]
[1641622960671,27.66479,141.44,141.39,5.635]
[1641622961074,137.47113979,141.46,141.4,4.0]
[1641622961275,64.6219,141.46,141.4,4.0]
[1641622963776,64.6219,141.46,141.37,36.28979]
[1641622963977,27.66479,141.47,141.38,4.0]
[1641622964176,27.66479,141.47,141.4,4.0]
[1641622964377,27.66479,141.47,141.41,4.0]
[1641622965177,27.66479,141.47,141.4,7.61]
[1641622965378,27.66479,141.47,141.42,1.70958065]
[1641622965780,34.7299306,141.47,141.42,1.70958065]
[1641622965979,27.66479,141.47,141.42,1.70958065]
[1641622966181,27.66479,141.47,141.4,4.0]
[1641622966379,3.28710512,141.46,141.4,4.0]
[1641622967279,27.66479,141.47,141.4,4.0]
[1641622968280,3.29156553,141.46,141.41,1.71354724]
[1641622970887,18.67620532,141.46,141.41,1.71354724]
[1641622971289,27.66479,141.42,141.41,1.71354724]
[1641622971489,36.29179,141.42,141.39,1.71354724]
[1641622972392,36.29179,141.42,141.37,1.71354724]
[1641622973190,41.29678652,141.42,141.38,5.00499652]
[1641622973591,13.63199652,141.42,141.38,5.00499652]
[1641622973892,5.00499652,141.42,141.38,5.00499652]
[1641622974192,32.66978652,141.42,141.38,5.00499652]
[1641622975894,5.00499652,141.42,141.38,5.00499652]
[1641622976399,5.00499652,141.42,141.37,1.71354724]
[1641622976400,7.06788706,141.42,141.39,5.00558201]
[1641622977797,7.06788706,141.42,141.36,14.95766395]
[1641622977997,3.29374945,141.41,141.35,5.00676488]
[1641622978197,27.66479,141.37,141.35,5.00676488]
[1641622978399,35.33279,141.37,141.35,5.00676488]
[1641622978598,7.668,141.37,141.34,1.71354724]
[1641622978900,7.668,141.37,141.34,5.71354724]
[1641622979299,7.668,141.37,141.34,1.71354724]
[1641622979499,7.668,141.37,141.34,5.71354724]
[1641622979700,4.84204386,141.37,141.35,6.71811719]
[1641622979900,27.66479,141.39,141.35,6.71811719]
[1641622980602,32.66942121,141.39,141.35,6.71811719]
[1641622981406,32.66942121,141.39,141.34,5.00456995]
[1641622982104,32.66942121,141.39,141.35,5.00456995]
[1641622982304,38.00142121,141.39,141.35,5.00456995]
[1641622983004,5.00463121,141.38,141.33,5.00456995]
[1641622983704,38.00142121,141.39,141.33,5.00456995]
[1641622985106,32.99679,141.39,141.33,5.00456995]
[1641622985306,27.66479,141.39,141.33,5.00456995]
[1641622985907,32.66942121,141.39,141.33,5.00456995]
[1641622987008,32.66942121,141.39,141.33,9.00456995]
[1641622987510,27.66479,141.39,141.34,5.00456995]
[1641622988609,27.66479,141.39,141.34,6.71811719]
[1641622989511,27.66479,141.39,141.34,9.00456995]
[1641622989913,27.66479,141.39,141.34,5.00456995]
[1641622992113,5.00463121,141.4,141.34,5.00456995]
[1641622992313,5.00463121,141.4,141.34,9.00456995]
[1641622992514,27.66479,141.37,141.34,9.00456995]
[1641622992713,27.66479,141.37,141.34,5.00456995]
[1641622993314,27.66479,141.37,141.34,9.00456995]
[1641622993517,27.66479,141.37,141.34,5.00456995]
[1641622993916,27.66479,141.37,141.34,9.00456995]
[1641622995019,27.66479,141.37,141.34,5.00456995]
[1641622996422,27.66479,141.39,141.36,4.0]
[1641622996621,5.00463121,141.4,141.34,9.00456995]
[1641622997122,5.00463121,141.4,141.35,5.00456995]
[1641622998023,5.00463121,141.4,141.34,6.71444798]
[1641622998722,27.66479,141.39,141.34,6.71444798]
[1641622998923,27.66479,141.39,141.35,5.00456995]
[1641623000329,32.66942121,141.39,141.34,6.71444798]
[1641623000527,40.10142121,141.39,141.34,6.71444798]
[1641623001231,5.00463121,141.37,141.34,5.00456995]
[1641623002131,5.00463121,141.38,141.34,6.71444798]
[1641623002835,5.00463121,141.37,141.34,6.71444798]
[1641623003733,5.00463121,141.38,141.34,6.71444798]
[1641623004434,5.00463121,141.37,141.35,5.00456995]
[1641623006438,5.00463121,141.36,141.35,5.00456995]
[1641623008744,32.66942121,141.37,141.34,1.70987803]
[1641623008944,7.07163567,141.35,141.31,7.89653995]
[1641623009145,27.66479,141.32,141.31,7.89653995]
[1641623009344,33.51079,141.32,141.31,7.89653995]